fUSD/lending_fUSD_20240215
["ID","MTS","AMOUNT","RATE_DAILY","PERIOD"]
[314094536,1707972641373,-500.0,0.0003863,7]
[314094538,1707972641382,-500.0,0.0003863,7]
[314094540,1707972641391,-500.0,0.0003863,7]
[314094543,1707972641400,-500.0,0.0003863,7]
[314094545,1707972641409,-500.0,0.0003863,7]
[314094546,1707972641419,-500.0,0.0003863,7]
[314094549,1707972641428,-500.0,0.0003863,7]
[314094551,1707972641437,-500.0,0.0003863,7]
[314094553,1707972641447,-500.0,0.0003863,7]
[314094554,1707972641456,-500.0,0.0003863,7]
[314094557,1707972641466,-500.0,0.0003863,7]
[314094558,1707972641475,-500.0,0.0003863,7]
[314094560,1707972641484,-580.36491877,0.0003863,7]
[314094562,1707972641493,-500.0,0.0003863,7]
[314094564,1707972641502,-535.54567942,0.0003863,7]
[314094566,1707972641511,-505.17198028,0.0003863,7]
[314094568,1707972641520,-515.35573147,0.0003863,7]
[314094570,1707972641530,-500.0,0.0003863,7]
[314094572,1707972641539,-500.0,0.0003863,7]
[314094574,1707972641548,-150.0,0.0003863,7]
[314094576,1707972641557,-500.0,0.0003863,7]
[314094578,1707972641566,-608.75008527,0.0003863,7]
[314094580,1707972641575,-500.0,0.0003863,7]
[314094582,1707972641584,-613.5239446,0.0003863,7]
[314094584,1707972641595,-508.33411622,0.0003863,7]
[314094586,1707972641604,-486.38369617,0.0003863,7]
[314094600,1707972641705,-366.15741505,0.0003863,7]
[314094602,1707972641725,-500.0,0.0003863,7]
[314094604,1707972641734,-500.0,0.0003863,7]
[314094606,1707972641743,-556.62312727,0.0003863,7]
[314094608,1707972641752,-234.69650725,0.0003863,7]
[314094610,1707972641761,-500.0,0.0003863,7]
[314094612,1707972641769,-500.0,0.0003863,7]
[314094614,1707972641778,-500.0,0.0003863,7]
[314094616,1707972641787,-500.0,0.0003863,7]
[314094618,1707972641796,-500.0,0.0003863,7]
[314094620,1707972641805,-500.0,0.0003863,7]
[314094622,1707972641814,-500.0,0.0003863,7]
[314094624,1707972641823,-500.0,0.0003863,7]
[314094626,1707972641832,-528.03317239,0.0003863,7]
[314094628,1707972641842,-574.9764823,0.0003863,7]
[314094630,1707972641851,-160.139379,0.0003863,7]
[314094632,1707972641859,-500.0,0.0003863,7]
[314094634,1707972641868,-361.1822182,0.0003863,7]
[314094635,1707972641877,-500.0,0.0003863,7]
[314094637,1707972641886,-500.0,0.0003863,7]
[314094640,1707972641895,-500.0,0.0003863,7]
[314094642,1707972641904,-500.0,0.0003863,7]
[314094644,1707972641914,-525.91241829,0.0003863,7]
[314094646,1707972641923,-168.86447282,0.0003863,7]
[314094648,1707972641933,-605.25153489,0.0003863,7]
[314094649,1707972641942,-500.0,0.0003863,7]
[314094652,1707972641952,-500.0,0.0003863,7]
[314094654,1707972641961,-557.62563878,0.0003863,7]
[314094655,1707972641971,-500.0,0.0003863,7]
[314094657,1707972641980,-500.0,0.0003863,7]
[314094660,1707972641989,-500.0,0.0003863,7]
[314094662,1707972641998,-323.11271249,0.0003863,7]
[314094663,1707972642007,-648.10808523,0.0003863,7]
[314094665,1707972642016,-500.0,0.0003863,7]
[314094667,1707972642025,-553.595843,0.0003863,7]
[314094669,1707972642034,-500.0,0.0003863,7]
[314094672,1707972642043,-500.0,0.0003863,7]
[314094673,1707972642053,-500.0,0.0003863,7]
[314094676,1707972642062,-583.05,0.0003863,7]
[314094678,1707972642071,-219.33591749,0.0003863,7]
[314094679,1707972642080,-500.0,0.0003863,7]
[314094681,1707972642090,-500.0,0.0003863,7]
[314094682,1707972642099,-500.0,0.0003863,7]
[314094683,1707972642110,-402.53176822,0.0003863,7]
[314094684,1707972642119,-325.6805572,0.0003863,7]
[314094685,1707972642127,-500.0,0.0003863,7]
[314094686,1707972642136,-266.3285269,0.0003863,7]
[314094687,1707972642145,-195.03870658,0.0003863,7]
[314094688,1707972642154,-500.0,0.0003863,7]
[314094690,1707972642164,-547.18185331,0.0003863,7]
[314094692,1707972642173,-586.16137636,0.0003863,7]
[314094694,1707972642183,-550.3086389,0.0003863,7]
[314094696,1707972642192,-526.50085314,0.0003863,7]
[314094698,1707972642201,-500.0,0.0003863,7]
[314094700,1707972642210,-500.0,0.0003863,7]
[314094702,1707972642219,-176.40013662,0.0003863,7]
[314094704,1707972642228,-162.01,0.0003863,7]
[314094706,1707972642237,-500.0,0.0003863,7]
[314094708,1707972642246,-500.0,0.0003863,7]
[314094710,1707972642255,-500.0,0.0003863,7]
[314094712,1707972642265,-640.71334413,0.0003863,7]
[314094714,1707972642275,-500.0,0.0003863,7]
[314094716,1707972642284,-500.0,0.0003863,7]
[314094717,1707972642293,-500.0,0.0003863,7]
[314094719,1707972642303,-500.0,0.0003863,7]
[314094721,1707972642312,-378.24209355,0.0003863,7]
[314094723,1707972642321,-500.0,0.0003863,7]
[314094725,1707972642331,-500.0,0.0003863,7]
[314094727,1707972642340,-500.0,0.0003863,7]
[314094729,1707972642349,-500.0,0.0003863,7]
[314094731,1707972642358,-500.0,0.0003863,7]
[314094733,1707972642367,-310.04548174,0.0003863,7]
[314094735,1707972642376,-500.0,0.0003863,7]
[314094737,1707972642385,-500.0,0.0003863,7]
[314094739,1707972642395,-500.0,0.0003863,7]
[314094741,1707972642403,-500.0,0.0003863,7]
[314094743,1707972642413,-500.0,0.0003863,7]
[314094745,1707972642422,-547.86,0.0003863,7]
[314094747,1707972642431,-500.0,0.0003863,7]
[314094749,1707972642440,-500.0,0.0003863,7]
[314094751,1707972642449,-728.22,0.0003863,7]
[314094754,1707972642459,-856.09,0.0003863,7]
[314094756,1707972642468,-578.18745555,0.0003863,7]
[314094758,1707972642477,-500.0,0.0003863,7]
[314094760,1707972642487,-500.0,0.0003863,7]
[314094761,1707972642497,-500.0,0.0003863,7]
[314094763,1707972642508,-500.0,0.0003863,7]
[314094765,1707972642517,-500.0,0.0003863,7]
[314094767,1707972642527,-500.0,0.0003863,7]
[314094769,1707972642536,-500.0,0.0003863,7]
[314094771,1707972642545,-537.94,0.0003863,7]
[314094773,1707972642554,-408.91413217,0.0003863,7]
[314094775,1707972642564,-548.47279087,0.0003863,7]
[314094777,1707972642573,-500.0,0.0003863,7]
[314094779,1707972642582,-500.0,0.0003863,7]
[314094781,1707972642591,-500.0,0.0003863,7]
[314094784,1707972642601,-500.0,0.0003863,7]
[314094785,1707972642610,-500.0,0.0003863,7]
[314094787,1707972642619,-500.0,0.0003863,7]
[314094790,1707972642629,-500.0,0.0003863,7]
[314094792,1707972642638,-500.0,0.0003863,7]
[314094794,1707972642647,-500.0,0.0003863,7]
[314094796,1707972642657,-523.17123724,0.0003863,7]
[314094798,1707972642667,-541.58130106,0.0003863,7]
[314094800,1707972642676,-500.0,0.0003863,7]
[314094802,1707972642685,-518.50393555,0.0003863,7]
[314094804,1707972642694,-500.0,0.0003863,7]
[314094806,1707972642703,-500.0,0.0003863,7]
[314094808,1707972642712,-500.0,0.0003863,7]
[314094810,1707972642722,-500.0,0.0003863,7]
[314094812,1707972642732,-705.71,0.0003863,7]
[314094813,1707972642741,-536.78854356,0.0003863,7]
[314094815,1707972642750,-500.0,0.0003863,7]
[314094818,1707972642761,-500.0,0.0003863,7]
[314094819,1707972642770,-500.0,0.0003863,7]
[314094821,1707972642779,-530.0230999,0.0003863,7]
[314094824,1707972642789,-500.0,0.0003863,7]
[314094825,1707972642798,-500.0,0.0003863,7]
[314094827,1707972642808,-500.0,0.0003863,7]
[314094829,1707972642817,-500.0,0.0003863,7]
[314094831,1707972642827,-622.58977412,0.0003863,7]
[314094833,1707972642836,-500.0,0.0003863,7]
[314094835,1707972642848,-506.48182621,0.0003863,7]
[314094837,1707972642857,-500.0,0.0003863,7]
[314094839,1707972642867,-500.0,0.0003863,7]
[314094841,1707972642876,-500.0,0.0003863,7]
[314094843,1707972642885,-517.48,0.0003863,7]
[314094845,1707972642895,-500.0,0.0003863,7]
[314094847,1707972642904,-500.0,0.0003863,7]
[314094849,1707972642914,-500.0,0.0003863,7]
[314094852,1707972642923,-500.0,0.0003863,7]
[314094854,1707972642932,-500.0,0.0003863,7]
[314094858,1707972642941,-500.0,0.0003863,7]
[314094860,1707972642951,-569.77396092,0.0003863,7]
[314094862,1707972642959,-500.0,0.0003863,7]
[314094864,1707972642969,-500.0,0.0003863,7]
[314094866,1707972642979,-500.0,0.0003863,7]
[314094868,1707972642988,-508.62807195,0.0003863,7]
[314094870,1707972642997,-500.0,0.0003863,7]
[314094872,1707972643006,-529.86751901,0.0003863,7]
[314094874,1707972643015,-572.63974245,0.0003863,7]
[314094876,1707972643024,-500.0,0.0003863,7]
[314094878,1707972643033,-1009.87327385,0.0003863,7]
[314094880,1707972643042,-500.0,0.0003863,7]
[314094882,1707972643051,-500.0,0.0003863,7]
[314094884,1707972643060,-500.0,0.0003863,7]
[314094886,1707972643069,-546.05836431,0.0003863,7]
[314094888,1707972643079,-521.69923625,0.0003863,7]
[314094890,1707972643087,-500.0,0.0003863,7]
[314094892,1707972643097,-500.0,0.0003863,7]
[314094894,1707972643108,-500.0,0.0003863,7]
[314094896,1707972643118,-517.17122677,0.0003863,7]
[314094898,1707972643127,-523.49911342,0.0003863,7]
[314094900,1707972643136,-500.0,0.0003863,7]
[314094902,1707972643145,-456.07784876,0.0003863,7]
[314094904,1707972643154,-500.0,0.0003863,7]
[314094906,1707972643163,-500.0,0.0003863,7]
[314094908,1707972643173,-500.0,0.0003863,7]
[314094910,1707972643182,-500.0,0.0003863,7]
[314094912,1707972643191,-500.0,0.0003863,7]
[314094914,1707972643200,-516.69245907,0.0003863,7]
[314094916,1707972643211,-500.0,0.0003863,7]
[314094918,1707972643220,-517.13846607,0.0003863,7]
[314094920,1707972643228,-500.0,0.0003863,7]
[314094922,1707972643237,-500.0,0.0003863,7]
[314094924,1707972643246,-500.0,0.0003863,7]
[314094926,1707972643255,-523.03088913,0.0003863,7]
[314094928,1707972643264,-175.89797385,0.0003863,7]
[314094929,1707972643274,-479.43800799,0.0003863,7]
[314094931,1707972643282,-340.45307204,0.0003863,7]
[314094935,1707972643303,-159.54692796,0.0003863,7]
[314094937,1707972643312,-500.0,0.0003863,7]
[314094939,1707972643321,-554.18517654,0.0003863,7]
[314094941,1707972643332,-523.5597461,0.0003863,7]
[314094943,1707972643342,-309.46446462,0.0003863,7]
[314094945,1707972643353,-190.53553538,0.0003863,7]
[314094947,1707972643362,-301.65056087,0.0003863,7]
[314094949,1707972643373,-243.23545631,0.0003863,7]
[314094951,1707972643384,-248.43483944,0.0003863,7]
[314094953,1707972643396,-251.56516056,0.0003863,7]
[314094956,1707972643407,-540.42548636,0.0003863,7]
[314094958,1707972643418,-507.76863399,0.0003863,7]
[314094959,1707972643429,-175.68353586,0.0003863,7]
[314094962,1707972643441,-54.62094018,0.0003863,7]
[314094964,1707972643450,-476.9124901,0.0003863,7]
[314094966,1707972643459,-500.0,0.0003863,7]
[314094968,1707972643469,-500.0,0.0003863,7]
[314094970,1707972643478,-500.0,0.0003863,7]
[314094973,1707972643487,-534.17888811,0.0003863,7]
[314094975,1707972643496,-500.0,0.0003863,7]
[314094977,1707972643506,-500.0,0.0003863,7]
[314094979,1707972643514,-500.0,0.0003863,7]
[314094981,1707972643523,-530.84501516,0.0003863,7]
[314094983,1707972643532,-500.0,0.0003863,7]
[314094985,1707972643541,-500.0,0.0003863,7]
[314094987,1707972643551,-500.0,0.0003863,7]
[314094989,1707972643560,-500.0,0.0003863,7]
[314094991,1707972643569,-502.14701317,0.0003863,7]
[314094993,1707972643578,-500.0,0.0003863,7]
[314094995,1707972643587,-500.0,0.0003863,7]
[314094997,1707972643599,-334.83412725,0.0003863,7]
[314094999,1707972643608,-500.0,0.0003863,7]
[314095001,1707972643617,-500.0,0.0003863,7]
[314095003,1707972643626,-500.0,0.0003863,7]
[314095005,1707972643635,-500.0,0.0003863,7]
[314095007,1707972643645,-500.0,0.0003863,7]
[314095009,1707972643655,-500.0,0.0003863,7]
[314095011,1707972643664,-500.0,0.0003863,7]
[314095013,1707972643673,-500.0,0.0003863,7]
[314095015,1707972643682,-169.62996406,0.0003863,7]
[314095017,1707972643691,-500.0,0.0003863,7]
[314095019,1707972643701,-541.11196371,0.0003863,7]
[314095021,1707972643710,-602.75518619,0.0003863,7]
[314095023,1707972643719,-391.97737446,0.0003863,7]
[314095025,1707972643728,-500.0,0.0003863,7]
[314095027,1707972643737,-500.0,0.0003863,7]
[314095029,1707972643746,-500.0,0.0003863,7]
[314095031,1707972643756,-500.0,0.0003863,7]
[314095033,1707972643765,-513.64108635,0.0003863,7]
[314095035,1707972643774,-500.0,0.0003863,7]
[314095037,1707972643783,-500.0,0.0003863,7]
[314095039,1707972643792,-500.0,0.0003863,7]
[314095041,1707972643801,-1123.16,0.0003863,7]
[314095042,1707972643810,-598.15644343,0.0003863,7]
[314095043,1707972643819,-500.0,0.0003863,7]
[314095044,1707972643828,-530.0,0.0003863,7]
[314095045,1707972643837,-500.0,0.0003863,7]
[314095046,1707972643848,-398.28236492,0.0003863,7]
[314095049,1707972644136,-517.55,0.00034044,2]
[314095051,1707972644145,-1547.71775631,0.00034044,2]
[314095053,1707972644156,-14603.63224369,0.00034044,2]
[314095055,1707972644165,-203.0,0.00038256,2]
[314095057,1707972644175,-504.35150619,0.00038356,7]
[314095059,1707972644185,-500.0,0.00038356,7]
[314095061,1707972644194,-1247.73595181,0.000384,2]
[314095063,1707972644204,-101.71763508,0.0003863,7]
[314095065,1707972644212,-547.83571209,0.0003863,7]
[314095067,1707972644221,-500.0,0.0003863,7]
[314095069,1707972644230,-500.0,0.0003863,7]
[314095071,1707972644239,-644.23906857,0.0003863,7]
[314095073,1707972644248,-500.0,0.0003863,7]
[314095075,1707972644257,-500.0,0.0003863,7]
[314095077,1707972644266,-500.0,0.0003863,7]
[314095079,1707972644276,-500.0,0.0003863,7]
[314095081,1707972644286,-500.0,0.0003863,7]
[314095083,1707972644295,-500.0,0.0003863,7]
[314095085,1707972644304,-500.0,0.0003863,7]
[314095087,1707972644313,-500.0,0.0003863,7]
[314095089,1707972644322,-513.72664681,0.0003863,7]
[314095091,1707972644331,-227.49913039,0.0003863,7]
[314095093,1707972644340,-500.0,0.0003863,7]
[314095095,1707972644349,-527.02311833,0.0003863,7]
[314095097,1707972644358,-500.0,0.0003863,7]
[314095099,1707972644367,-500.0,0.0003863,7]
[314095101,1707972644376,-500.0,0.0003863,7]
[314095103,1707972644386,-592.69595017,0.0003863,7]
[314095105,1707972644394,-500.0,0.0003863,7]
[314095107,1707972644403,-500.0,0.0003863,7]
[314095109,1707972644412,-526.90916506,0.0003863,7]
[314095111,1707972644421,-500.0,0.0003863,7]
[314095113,1707972644430,-500.0,0.0003863,7]
[314095115,1707972644439,-539.89645641,0.0003863,7]
[314095117,1707972644448,-500.0,0.0003863,7]
[314095119,1707972644457,-500.0,0.0003863,7]
[314095121,1707972644466,-500.0,0.0003863,7]
[314095123,1707972644474,-500.0,0.0003863,7]
[314095125,1707972644483,-481.65017347,0.0003863,7]
[314095127,1707972644492,-500.0,0.0003863,7]
[314095129,1707972644501,-500.0,0.0003863,7]
[314095131,1707972644510,-517.26082949,0.0003863,7]
[314095133,1707972644519,-334.2186548,0.0003863,7]
[314095135,1707972644527,-500.0,0.0003863,7]
[314095137,1707972644536,-539.84507498,0.0003863,7]
[314095139,1707972644545,-500.0,0.0003863,7]
[314095141,1707972644554,-607.30732026,0.0003863,7]
[314095143,1707972644563,-195.95790686,0.0003863,7]
[314095145,1707972644571,-500.0,0.0003863,7]
[314095147,1707972644580,-366.58325743,0.0003863,7]
[314095149,1707972644589,-151.99329263,0.0003863,7]
[314095151,1707972644599,-500.0,0.0003863,7]
[314095153,1707972644607,-500.0,0.0003863,7]
[314095155,1707972644616,-520.23213209,0.0003863,7]
[314095157,1707972644627,-219.25636154,0.0003863,7]
[314095159,1707972644636,-532.97656633,0.0003863,7]
[314095161,1707972644645,-500.0,0.0003863,7]
[314095163,1707972644654,-500.0,0.0003863,7]
[314095165,1707972644664,-510.24692225,0.0003863,7]
[314095167,1707972644673,-500.0,0.0003863,7]
[314095169,1707972644682,-259.0,0.0003864,2]
[314095171,1707972644691,-220.21816952,0.0003869,30]
[314095173,1707972644699,-158.81,0.00038721,2]
[314095175,1707972644708,-159.15500705,0.00038729,2]
[314095177,1707972644717,-191.71,0.00038766,2]
[314095179,1707972644726,-157.0,0.000388,7]
[314095181,1707972644736,-500.0,0.00038802,7]
[314095183,1707972644745,-500.0,0.00038803,7]
[314095185,1707972644754,-500.0,0.00038803,7]
[314095187,1707972644763,-181.51913806,0.00038857,12]
[314095189,1707972644773,-82837.8495868,0.00038894,3]
[314095191,1707972644782,-1000.0,0.000389,2]
[314095193,1707972644791,-177.34,0.000389,2]
[314095195,1707972644800,-578.06239529,0.00038904,7]
[314095197,1707972644810,-619.52848031,0.00038904,7]
[314095199,1707972644819,-492.85772474,0.00038904,7]
[314095201,1707972644828,-500.0,0.00038904,7]
[314095203,1707972644836,-408.48075538,0.00038904,2]
[314095205,1707972644845,-359.30389226,0.00038904,7]
[314095207,1707972644854,-500.0,0.00038904,7]
[314095209,1707972644863,-170.68152518,0.00038904,7]
[314095211,1707972644872,-500.0,0.00038904,7]
[314095213,1707972644881,-560.58531934,0.00038904,7]
[314095215,1707972644891,-278.55914818,0.00038904,7]
[314095217,1707972644900,-500.0,0.00038904,2]
[314095219,1707972644909,-500.0,0.00038904,7]
[314095221,1707972644918,-528.47567377,0.00038904,7]
[314095222,1707972644929,-500.0,0.00038904,7]
[314095224,1707972644938,-140.18623104,0.00038904,7]
[314095227,1707972644951,-359.81376896,0.00038904,7]
[314095229,1707972644960,-500.0,0.00038904,7]
[314095231,1707972644969,-403.08086941,0.00038904,7]
[314095233,1707972644978,-500.0,0.00038904,7]
[314095235,1707972644987,-500.0,0.00038904,7]
[314095237,1707972644996,-193.21607964,0.00038904,7]
[314095239,1707972645004,-158.64553389,0.00038904,7]
[314095241,1707972645016,-341.35446611,0.00038904,7]
[314095243,1707972645025,-387.85866639,0.00038904,7]
[314095245,1707972645034,-500.0,0.00038904,7]
[314095247,1707972645043,-500.0,0.00038904,7]
[314095249,1707972645052,-500.0,0.00038904,7]
[314095251,1707972645061,-500.0,0.00038904,7]
[314095253,1707972645070,-347.94105532,0.00038904,7]
[314095254,1707972645079,-500.0,0.00038904,7]
[314095256,1707972645087,-500.0,0.00038904,7]
[314095258,1707972645097,-500.0,0.00038904,7]
[314095259,1707972645106,-64.13580903,0.00038904,7]
[314095261,1707972645124,-508.01106942,0.00038356,7]
[314095262,1707972645134,-435.86419097,0.00038904,7]
[314095263,1707972645143,-500.0,0.00038904,7]
[314095264,1707972645152,-500.0,0.00038904,7]
[314095265,1707972645161,-500.0,0.00038904,7]
[314095266,1707972645170,-500.0,0.00038904,7]
[314095267,1707972645179,-639.58368363,0.00038904,7]
[314095268,1707972645188,-200.95394518,0.00038904,7]
[314095269,1707972645197,-500.0,0.00038904,7]
[314095270,1707972645206,-197.66589231,0.00038904,7]
[314095271,1707972645215,-169.84,0.00038904,7]
[314095272,1707972645225,-500.0,0.00038904,7]
[314095273,1707972645234,-447.19030215,0.00038904,7]
[314095274,1707972645243,-500.0,0.00038904,7]
[314095275,1707972645252,-428.28693672,0.00038904,7]
[314095276,1707972645261,-500.0,0.00038904,7]
[314095277,1707972645270,-232.90147741,0.00038904,7]
[314095278,1707972645280,-500.0,0.00038904,7]
[314095279,1707972645289,-500.0,0.00038904,7]
[314095280,1707972645298,-500.0,0.00038904,7]
[314095281,1707972645307,-500.0,0.00038904,7]
[314095282,1707972645316,-500.0,0.00038904,7]
[314095283,1707972645326,-500.0,0.00038904,7]
[314095284,1707972645334,-500.0,0.00038904,7]
[314095285,1707972645344,-500.0,0.00038904,7]
[314095286,1707972645353,-500.0,0.00038904,7]
[314095287,1707972645362,-500.0,0.00038904,7]
[314095288,1707972645371,-554.33552457,0.00038904,7]
[314095289,1707972645380,-234.78,0.00038904,7]
[314095290,1707972645389,-500.0,0.00038904,7]
[314095291,1707972645398,-520.66078611,0.00038904,7]
[314095292,1707972645408,-500.0,0.00038904,7]
[314095293,1707972645417,-206.05941985,0.00038904,7]
[314095294,1707972645426,-385.29543556,0.00038904,7]
[314095295,1707972645437,-189.46019872,0.00038904,7]
[314095296,1707972645446,-500.0,0.00038904,7]
[314095297,1707972645455,-500.0,0.00038904,7]
[314095298,1707972645464,-500.0,0.00038904,7]
[314095299,1707972645474,-500.0,0.00038904,7]
[314095300,1707972645483,-364.03972855,0.00038904,7]
[314095301,1707972645492,-500.0,0.00038904,7]
[314095302,1707972645501,-559.04817481,0.00038904,7]
[314095303,1707972645511,-500.0,0.00038904,7]
[314095304,1707972645520,-500.0,0.00038904,7]
[314095305,1707972645529,-500.0,0.00038904,7]
[314095306,1707972645538,-500.0,0.00038904,7]
[314095307,1707972645547,-500.0,0.00038904,7]
[314095308,1707972645556,-500.0,0.00038904,7]
[314095309,1707972645566,-500.0,0.00038904,7]
[314095310,1707972645574,-629.97857191,0.00038904,7]
[314095311,1707972645584,-500.0,0.00038904,7]
[314095312,1707972645595,-728.22,0.00038904,7]
[314095313,1707972645604,-856.09,0.00038904,7]
[314095314,1707972645613,-500.0,0.00038904,7]
[314095315,1707972645622,-500.0,0.00038904,7]
[314095316,1707972645632,-500.0,0.00038904,7]
[314095317,1707972645641,-500.0,0.00038904,7]
[314095318,1707972645650,-500.0,0.00038904,7]
[314095319,1707972645659,-500.0,0.00038904,7]
[314095320,1707972645669,-500.0,0.00038904,7]
[314095321,1707972645677,-537.94,0.00038904,7]
[314095322,1707972645686,-172.2414124,0.00038904,7]
[314095323,1707972645696,-500.0,0.00038904,7]
[314095324,1707972645705,-610.54024492,0.00038904,7]
[314095325,1707972645714,-222.0003593,0.00038904,7]
[314095326,1707972645723,-306.50042241,0.00038904,7]
[314095327,1707972645733,-500.0,0.00038904,7]
[314095328,1707972645742,-500.0,0.00038904,7]
[314095329,1707972645752,-500.0,0.00038904,7]
[314095330,1707972645761,-500.0,0.00038904,7]
[314095331,1707972645771,-500.0,0.00038904,7]
[314095332,1707972645780,-500.0,0.00038904,7]
[314095333,1707972645789,-705.71,0.00038904,7]
[314095334,1707972645799,-500.0,0.00038904,7]
[314095335,1707972645807,-513.80829902,0.00038904,7]
[314095336,1707972645817,-500.0,0.00038904,7]
[314095337,1707972645826,-500.0,0.00038904,7]
[314095338,1707972645839,-500.0,0.00038904,7]
[314095339,1707972645849,-530.54122793,0.00038904,7]
[314095340,1707972645858,-223.40186515,0.00038904,7]
[314095342,1707972645868,-500.0,0.00038904,7]
[314095344,1707972645877,-637.2456945,0.00038904,7]
[314095345,1707972645886,-649.83915907,0.00038904,7]
[314095346,1707972645895,-500.0,0.00038904,7]
[314095347,1707972645905,-500.0,0.00038904,7]
[314095348,1707972645914,-500.0,0.00038904,7]
[314095349,1707972645924,-500.0,0.00038904,7]
[314095350,1707972645933,-500.0,0.00038904,7]
[314095351,1707972645943,-500.0,0.00038904,7]
[314095352,1707972645952,-500.0,0.00038904,7]
[314095353,1707972645962,-500.0,0.00038904,7]
[314095354,1707972645971,-500.0,0.00038904,7]
[314095355,1707972645980,-292.99930511,0.00038904,7]
[314095356,1707972645989,-164.93662837,0.00038904,7]
[314095357,1707972646003,-151.11134591,0.00038904,7]
[314095358,1707972646012,-500.0,0.00038904,7]
[314095359,1707972646022,-432.13741038,0.00038904,7]
[314095360,1707972646034,-67.86258962,0.00038904,7]
[314095361,1707972646043,-500.0,0.00038904,7]
[314095362,1707972646053,-583.18730399,0.00038904,7]
[314095363,1707972646062,-500.0,0.00038904,7]
[314095364,1707972646165,-378.55196222,0.00038904,7]
[314095365,1707972646174,-500.0,0.00038904,7]
[314095366,1707972646183,-500.0,0.00038904,7]
[314095367,1707972646194,-500.0,0.00038904,7]
[314095368,1707972646205,-500.0,0.00038904,7]
[314095369,1707972646214,-500.0,0.00038904,7]
[314095370,1707972646223,-500.0,0.00038904,7]
[314095371,1707972646232,-500.0,0.00038904,7]
[314095372,1707972646242,-500.0,0.00038904,7]
[314095373,1707972646252,-500.0,0.00038904,7]
[314095374,1707972646261,-350.50409274,0.00038904,7]
[314095375,1707972646270,-500.0,0.00038904,7]
[314095376,1707972646279,-500.0,0.00038904,7]
[314095377,1707972646288,-500.0,0.00038904,7]
[314095378,1707972646297,-500.0,0.00038904,7]
[314095379,1707972646306,-500.0,0.00038904,7]
[314095380,1707972646319,-500.0,0.00038904,7]
[314095381,1707972646329,-524.16098049,0.00038904,7]
[314095382,1707972646337,-1123.16,0.00038904,7]
[314095383,1707972646348,-500.0,0.00038904,7]
[314095384,1707972646357,-530.0,0.00038904,7]
[314095385,1707972646366,-500.0,0.00038904,7]
[314095386,1707972646375,-500.0,0.00038904,7]
[314095387,1707972646384,-500.0,0.00038904,7]
[314095388,1707972646394,-500.0,0.00038904,7]
[314095389,1707972646403,-500.0,0.00038904,7]
[314095390,1707972646413,-500.0,0.00038904,7]
[314095392,1707972646425,-500.0,0.00038904,7]
[314095394,1707972646435,-500.0,0.00038904,7]
[314095395,1707972646443,-500.0,0.00038904,7]
[314095396,1707972646452,-500.0,0.00038904,7]
[314095397,1707972646462,-500.0,0.00038904,7]
[314095398,1707972646471,-500.0,0.00038904,7]
[314095399,1707972646480,-500.0,0.00038904,7]
[314095400,1707972646489,-500.0,0.00038904,7]
[314095401,1707972646498,-302.03593553,0.00038904,7]
[314095402,1707972646507,-500.0,0.00038904,7]
[314095403,1707972646517,-500.0,0.00038904,7]